bitfinex/quotes_SOLUSD_20260306
["timestamp","ask_amount","ask_price","bid_price","bid_amount"]
[1772795194784,11.41695875,87.589,87.541,0.71180639]
[1772795195176,0.02473336,87.588,87.543,0.71180639]
[1772795196882,0.02473336,87.588,87.545,0.71180639]
[1772795199588,0.02473336,87.588,87.547,0.71180639]
[1772795201882,15.51500041,87.59,87.549,0.71180639]
[1772795201883,11.41688264,87.59,87.549,0.71180639]
[1772795202198,11.43821925,87.594,87.549,0.71180639]
[1772795202584,0.0219034,87.593,87.549,0.71180639]
[1772795203194,0.0219034,87.593,87.551,0.71180639]
[1772795205888,0.0219034,87.593,87.553,0.71180639]
[1772795206488,0.02040224,87.606,87.553,0.71180639]
[1772795206885,11.41453096,87.608,87.555,4.40564041]
[1772795207088,11.41453096,87.608,87.562,0.14216157]
[1772795207319,11.41453096,87.608,87.563,0.71180639]
[1772795207822,11.4149382,87.605,87.563,0.71180639]
[1772795208045,11.41430147,87.61,87.565,0.71180639]
[1772795208387,11.41464923,87.607,87.565,0.71180639]
[1772795210010,11.41464923,87.607,87.567,0.71180639]
[1772795210887,4.09811777,87.6,87.566,11.41995751]
[1772795211096,4.09811777,87.59,87.554,0.71180639]
[1772795211403,4.09811777,87.58,87.52,0.71180639]
[1772795211718,4.09811777,87.58,87.524,0.71180639]
[1772795211924,11.41826236,87.579,87.53,0.71180639]
[1772795212835,11.41826236,87.579,87.532,0.71180639]
[1772795213554,28.54255764,87.589,87.532,0.71180639]
[1772795213555,11.41766314,87.584,87.532,0.71180639]
[1772795214209,15.51504275,87.59,87.534,0.71180639]
[1772795216104,44.05711376,87.59,87.535,39.98400638]
[1772795216303,16.61504275,87.59,87.536,0.71180639]
[1772795218235,16.61504275,87.59,87.541,0.71180639]
[1772795219108,1.1,87.59,87.545,0.71180639]
[1772795219336,1.1,87.59,87.549,0.71180639]
[1772795219538,1.1,87.59,87.553,0.71180639]
[1772795220516,1.1,87.59,87.555,0.71180639]
[1772795220718,11.4133102,87.617,87.558,0.71180639]
[1772795220914,11.4133102,87.617,87.57,0.71180639]
[1772795221117,11.4133102,87.617,87.572,0.71180639]
[1772795221316,7.48302055,87.62,87.572,0.71180639]
[1772795222042,7.48302055,87.62,87.582,0.71180639]
[1772795222720,7.48302055,87.62,87.584,0.71180639]
[1772795223843,7.48302055,87.62,87.586,0.71180639]
[1772795224528,0.1,87.64,87.589,0.71180639]
[1772795224722,11.41044512,87.639,87.593,0.71180639]
[1772795226049,4.19811777,87.64,87.595,0.71180639]
[1772795226842,0.1,87.64,87.595,0.71180639]
[1772795227725,0.1,87.64,87.598,0.71180639]
[1772795228245,0.1,87.64,87.6,0.71180639]
[1772795228548,0.1,87.64,87.602,0.71180639]
[1772795230150,0.1,87.64,87.611,0.14216157]
[1772795230322,0.1,87.64,87.612,0.71180639]
[1772795232439,0.1,87.64,87.614,0.71180639]
[1772795235747,0.1,87.64,87.616,0.71180639]
[1772795238550,0.1,87.64,87.618,0.71180639]
[1772795239630,0.1,87.64,87.62,0.71180639]
[1772795241732,0.1,87.64,87.622,0.71180639]
[1772795243630,0.1,87.64,87.623,11.41252867]
[1772795243861,0.1,87.64,87.624,0.71180639]
[1772795245056,0.1,87.64,87.625,11.41226818]
[1772795245258,0.1,87.64,87.626,0.71180639]
[1772795247259,0.10796042,87.655,87.628,0.71180639]
[1772795249137,0.10796042,87.655,87.629,11.41174725]
[1772795249337,0.10765626,87.668,87.63,0.70375362]
[1772795250666,0.10765626,87.668,87.632,0.70375362]
[1772795251667,0.1,87.67,87.632,0.70375362]
[1772795252649,0.10692734,87.669,87.634,0.71486415]
[1772795254647,0.1,87.67,87.636,0.71486415]
[1772795257159,0.1,87.67,87.638,0.71486415]
[1772795259368,0.1,87.67,87.64,0.71486415]
[1772795260861,0.10567091,87.669,87.634,11.41098133]
[1772795261577,0.10567091,87.669,87.63,0.71486415]
[1772795261578,0.10567091,87.668,87.63,0.71486415]
[1772795263158,0.10567091,87.668,87.631,12.12635095]
[1772795263351,0.10567091,87.668,87.632,0.71486415]
[1772795263546,0.10541474,87.659,87.632,0.71486415]
[1772795266278,0.10503915,87.658,87.633,11.41122636]
[1772795266974,0.10503915,87.658,87.633,12.12609051]
[1772795267181,0.10503915,87.658,87.634,0.71486415]
[1772795268471,0.10503915,87.658,87.636,0.71486415]
[1772795270256,0.1,87.67,87.639,0.71486415]
[1772795272766,0.1,87.67,87.641,0.71486415]
[1772795273483,0.10420239,87.669,87.621,4.83511293]
[1772795273660,0.10420239,87.649,87.609,0.71486415]
[1772795274764,0.10398288,87.648,87.611,0.71486415]
[1772795275476,0.10398288,87.639,87.611,0.71486415]
[1772795276362,0.10398288,87.639,87.612,12.1288257]
[1772795279363,0.10398288,87.639,87.612,11.41396155]
[1772795279567,0.10398288,87.639,87.613,0.71486415]
[1772795280994,0.10398288,87.639,87.614,11.413701]
[1772795281681,0.10398288,87.639,87.614,12.08962926]
[1772795281888,0.1031111,87.669,87.618,0.67592826]
[1772795282187,0.1,87.67,87.62,0.67592826]
[1772795282390,0.1,87.67,87.625,0.14216157]
[1772795282563,0.1,87.67,87.632,0.67592826]
[1772795282965,0.10300419,87.669,87.632,0.67592826]
[1772795283269,0.10300419,87.669,87.634,0.67592826]
[1772795286284,0.10300419,87.669,87.635,11.41096593]
[1772795286871,0.10300419,87.669,87.635,12.08689419]
[1772795288890,0.10239683,87.668,87.636,0.67592826]
[1772795290089,0.10239683,87.668,87.637,11.41070552]
[1772795290290,0.10239683,87.668,87.638,0.67592826]
[1772795291695,0.1,87.67,87.638,0.67592826]
[1772795292194,0.1,87.67,87.639,11.41044512]
[1772795292394,0.10209347,87.669,87.64,0.67592826]
[1772795295193,0.10209347,87.669,87.641,11.41018473]
[1772795295399,0.10209347,87.669,87.635,0.67592826]
[1772795297599,0.1,87.67,87.637,0.67592826]
[1772795298109,0.20155431,87.67,87.637,0.67592826]
[1772795298600,0.10155431,87.669,87.637,0.67592826]
[1772795299698,0.10155431,87.669,87.617,0.28432314]
[1772795299699,0.1,87.67,87.638,39.93701362]
[1772795299894,0.1,87.67,87.639,0.67592826]
[1772795300696,0.20128558,87.67,87.639,0.67592826]
[1772795300908,0.10128558,87.669,87.639,0.67592826]
[1772795301402,0.1,87.67,87.639,0.67592826]
[1772795302105,0.1,87.67,87.64,11.41031492]
[1772795302286,0.1,87.67,87.641,0.67592826]
[1772795304303,0.1,87.67,87.643,0.67592826]
[1772795304705,0.10094079,87.669,87.643,0.67592826]
[1772795305091,0.10094079,87.669,87.625,0.67592826]
[1772795305296,0.10094079,87.659,87.62,0.67592826]
[1772795306312,0.10094079,87.659,87.622,0.67592826]
[1772795306313,0.10087006,87.658,87.622,0.67592826]
[1772795307606,0.10078112,87.649,87.617,11.41323372]
[1772795307813,0.10071236,87.639,87.617,11.41323372]
[1772795308110,0.10071236,87.639,87.604,0.67592826]
[1772795308311,0.10071236,87.638,87.606,0.67592826]
[1772795311512,0.10046906,87.629,87.604,11.41497905]
[1772795311699,0.10046906,87.629,87.605,0.69446545]
[1772795312107,0.10023884,87.638,87.605,0.69446545]
[1772795313318,0.10023884,87.638,87.607,0.66717625]
[1772795316116,0.09995704,87.629,87.595,0.66717625]
[1772795318137,0.09981353,87.628,87.597,0.66717625]
[1772795319127,4.09209922,87.64,87.597,0.66717625]
[1772795319328,0.1,87.67,87.599,0.66717625]
[1772795319329,0.09974638,87.652,87.599,0.66717625]
[1772795319622,0.09974638,87.652,87.603,0.66717625]
[1772795319803,4.09209922,87.65,87.603,0.66717625]
[1772795320125,0.09967988,87.648,87.605,0.66717625]
[1772795321915,0.09967988,87.648,87.607,0.66717625]
[1772795329133,0.09967988,87.648,87.608,11.41448269]
[1772795329343,0.09967988,87.648,87.609,0.66717625]
[1772795332155,0.09967988,87.648,87.61,11.41422212]
[1772795332340,0.09967988,87.648,87.611,0.66717625]
[1772795334042,0.09881682,87.639,87.605,0.66717625]
[1772795335156,0.09876025,87.619,87.594,0.66717625]
[1772795335836,4.09209922,87.63,87.594,0.66717625]
[1772795336041,0.09870668,87.635,87.595,11.41617672]
[1772795336262,0.09870668,87.635,87.596,0.66717625]
[1772795337653,0.09870668,87.635,87.595,11.41617672]
[1772795337654,4.19075159,87.63,87.598,0.66717625]
[1772795338659,0.09865237,87.63,87.598,0.66717625]
[1772795339359,28.5261128,87.639,87.598,0.66717625]
[1772795339553,0.09853765,87.638,87.598,0.66717625]
[1772795340759,0.09848638,87.629,87.6,0.66717625]
[1772795342263,0.09832892,87.634,87.6,0.66717625]
[1772795343565,39.93655792,87.639,87.601,11.4153948]
[1772795343757,39.93655792,87.639,87.602,0.66935248]
[1772795344067,11.40947076,87.647,87.602,0.66935248]
[1772795344562,11.40823218,87.656,87.603,0.81151405]
[1772795345162,11.40823218,87.656,87.609,0.14216157]
[1772795345365,0.1,87.67,87.62,0.66935248]
[1772795345566,0.1,87.67,87.632,0.66935248]
[1772795345761,0.1,87.67,87.634,0.66935248]
[1772795348571,0.1,87.67,87.636,0.66935248]
[1772795349570,0.09795634,87.669,87.636,0.66935248]
[1772795349975,0.1,87.67,87.636,0.66935248]
[1772795350568,0.1,87.67,87.638,0.66935248]
[1772795351766,0.09706569,87.669,87.64,0.66935248]
[1772795353254,0.1,87.67,87.64,0.66935248]
[1772795353575,0.09665008,87.669,87.64,0.66935248]
[1772795353774,0.09665008,87.669,87.642,0.66935248]
[1772795353977,0.1,87.67,87.642,0.66935248]
[1772795355077,0.1,87.67,87.644,0.66935248]
[1772795356265,0.1,87.67,87.646,0.66935248]
[1772795361978,0.09317377,87.669,87.646,0.66935248]
[1772795362179,0.09317377,87.669,87.648,0.66935248]
[1772795362885,0.1,87.67,87.648,0.66935248]
[1772795366888,0.09140633,87.668,87.647,11.40940363]
[1772795367565,0.09140633,87.668,87.648,0.66935248]
[1772795368192,0.09140633,87.668,87.641,0.66935248]
[1772795369091,0.1,87.67,87.643,0.66935248]
[1772795371192,0.1,87.67,87.645,0.66935248]
[1772795373396,0.1,87.67,87.646,11.4095338]
[1772795373599,0.1,87.67,87.647,0.67831829]
[1772795375101,0.1,87.67,87.649,0.67831829]
[1772795375992,0.08783293,87.669,87.644,0.67831829]
[1772795376695,0.08783293,87.669,87.637,0.67831829]
[1772795376899,0.08752257,87.659,87.622,0.67831829]
[1772795377080,0.08752257,87.658,87.624,0.67831829]
[1772795379581,11.40784175,87.659,87.626,0.67831829]
[1772795382394,0.08605922,87.659,87.628,0.67831829]
[1772795382793,11.40400408,87.689,87.63,3.69383402]
[1772795382994,62.3,87.73,87.633,0.14216157]
[1772795382995,4.18813936,87.73,87.633,0.14216157]
[1772795383302,0.1,87.73,87.65,0.704836]
[1772795383488,5.93716442,87.765,87.654,0.704836]
[1772795383688,11.39408213,87.765,87.674,0.67831829]
[1772795383900,4.08813936,87.75,87.683,0.14216157]
[1772795384087,4.08813936,87.74,87.699,0.14216157]
[1772795384290,11.39526977,87.756,87.704,0.67831829]
[1772795384500,39.88335035,87.756,87.704,0.67831829]
[1772795384699,0.09964559,87.749,87.704,0.67831829]
[1772795385006,0.09950105,87.768,87.709,0.67831829]
[1772795385212,0.09950105,87.749,87.711,0.67831829]
[1772795385709,0.09936001,87.757,87.713,0.67831829]
[1772795385917,4.08813936,87.76,87.713,0.67831829]
[1772795386096,0.09936001,87.749,87.713,0.67831829]
[1772795386295,0.1,87.79,87.718,0.67831829]
[1772795386491,0.1,87.79,87.721,0.67831829]
[1772795386492,0.09936001,87.769,87.721,0.67831829]
[1772795386912,0.09922598,87.759,87.721,0.67831829]
[1772795387994,0.09908651,87.779,87.723,0.67831829]
[1772795388394,0.09908651,87.779,87.725,0.67831829]
[1772795388603,11.49216428,87.78,87.728,0.14216157]
[1772795388814,11.49216428,87.78,87.733,0.67831829]
[1772795389311,0.09895248,87.779,87.733,0.67831829]
[1772795389710,0.09882079,87.769,87.733,0.67831829]
[1772795390011,0.09882079,87.769,87.725,0.67831829]
[1772795390617,0.09882079,87.768,87.727,0.67831829]
[1772795392317,0.09856365,87.749,87.711,0.67831829]
[1772795392698,0.09843866,87.739,87.712,0.67831829]
[1772795392996,0.09843866,87.729,87.702,11.40220676]
[1772795393411,0.09843866,87.729,87.697,12.08116426]
[1772795393719,0.09843866,87.729,87.698,0.67831829]
[1772795394096,0.09831603,87.719,87.694,13.33743875]
[1772795394498,0.09831603,87.729,87.694,13.33743875]
[1772795394696,0.09831603,87.728,87.695,12.08147696]
[1772795394898,11.39873929,87.729,87.696,0.67831829]
[1772795395104,0.09819327,87.743,87.696,0.67831829]
[1772795395303,0.09819327,87.719,87.695,11.40315867]
[1772795395511,0.09819327,87.719,87.689,0.67831829]
[1772795396323,0.09819327,87.719,87.661,3.69383402]
[1772795396324,0.0980687,87.699,87.641,0.67831829]
[1772795396617,11.40523956,87.679,87.653,0.67831829]
[1772795397517,11.40523956,87.679,87.651,0.67831829]
[1772795398609,11.40523956,87.679,87.653,0.67831829]
[1772795398805,4.08813936,87.67,87.653,0.67831829]
[1772795399110,4.08813936,87.69,87.653,0.67831829]
[1772795400012,0.09757926,87.689,87.653,0.67831829]
[1772795400339,4.08813936,87.66,87.63,1e-08]
[1772795400529,11.41044512,87.639,87.626,1e-08]
[1772795401125,39.93655792,87.639,87.626,1e-08]
[1772795401322,4.08813936,87.65,87.626,1e-08]
[1772795401527,4.08813936,87.64,87.626,1e-08]
[1772795401936,4.08813936,87.65,87.626,1e-08]
[1772795402241,28.516026,87.67,87.626,1e-08]
[1772795402242,4.08813936,87.67,87.627,0.70362453]
[1772795402619,10.22363006,87.66,87.629,0.70362453]
[1772795403951,10.22363006,87.65,87.618,0.70362453]
[1772795404137,10.22363006,87.66,87.618,0.70362453]
[1772795404644,28.5127885,87.68,87.622,0.70362453]
[1772795404850,10.22363006,87.68,87.627,0.14216157]
[1772795405143,10.22363006,87.68,87.642,0.70362453]
[1772795405533,10.22363006,87.69,87.642,0.70362453]
[1772795406042,10.22363006,87.68,87.642,0.70362453]
[1772795406744,11.40523956,87.679,87.643,11.40992435]
[1772795407146,11.40523956,87.679,87.643,12.11354888]
[1772795407937,10.22363006,87.67,87.643,12.11354888]
[1772795408144,10.22363006,87.65,87.605,0.70362453]
[1772795408346,10.22363006,87.65,87.606,0.70362453]
[1772795408651,10.22363006,87.65,87.612,0.70362453]
[1772795410125,10.22363006,87.65,87.606,0.14216157]
[1772795410126,11.40914328,87.649,87.614,0.70362453]
[1772795411245,11.40914328,87.649,87.615,11.41357073]
[1772795411450,11.40914328,87.649,87.616,0.70362453]
[1772795412949,10.22363006,87.65,87.616,0.70362453]
[1772795413546,10.22363006,87.66,87.618,0.70362453]
[1772795414859,39.91833847,87.679,87.62,0.70362453]
[1772795415055,39.91833847,87.679,87.622,0.70362453]
[1772795415434,11.40654051,87.669,87.624,0.70362453]
[1772795415644,10.22363006,87.66,87.624,0.70362453]
[1772795416045,11.40654051,87.669,87.624,0.70362453]
[1772795416969,39.92289178,87.669,87.624,0.70362453]
[1772795417342,11.40654051,87.669,87.626,0.70362453]
[1772795417855,11.40537037,87.678,87.631,0.14216157]
[1772795418059,11.40406897,87.688,87.642,0.70362453]
[1772795418284,11.40263857,87.699,87.652,0.70362453]
[1772795418571,10.22363006,87.69,87.652,0.70362453]
[1772795418940,11.40263857,87.699,87.652,0.70362453]
[1772795419456,10.22363006,87.69,87.654,0.70362453]
[1772795422866,10.22363006,87.7,87.656,0.70362453]
[1772795423842,39.90150029,87.716,87.662,0.70362453]
[1772795424042,11.40042865,87.716,87.664,0.70362453]
[1772795424363,11.40042865,87.716,87.672,0.70362453]
[1772795424747,11.40133851,87.709,87.674,0.70362453]
[1772795425153,39.9046848,87.709,87.674,0.70362453]
[1772795427270,39.9046848,87.709,87.676,0.70362453]
[1772795428351,39.9046848,87.709,87.656,0.28432314]
[1772795428352,10.22363006,87.69,87.66,11.4076711]
[1772795428557,10.2188314,87.69,87.661,0.70362453]
[1772795429369,11.40393892,87.689,87.662,11.40745134]
[1772795430380,39.91378622,87.689,87.654,0.70362453]
[1772795431073,10.2188314,87.68,87.654,0.70362453]
[1772795431879,10.2188314,87.68,87.655,11.40836232]
[1772795431880,11.40523956,87.679,87.655,11.40836232]
[1772795432056,11.40523956,87.679,87.655,12.11198685]
[1772795432250,11.40523956,87.679,87.655,11.40836232]
[1772795432575,11.40523956,87.679,87.656,0.70362453]
[1772795432763,11.40406897,87.688,87.656,0.70362453]
[1772795434169,11.40406897,87.688,87.658,0.70362453]
[1772795436471,10.2188314,87.68,87.643,0.70362453]
[1772795437584,39.91833847,87.679,87.644,11.40979416]
[1772795437772,39.91833847,87.679,87.645,0.70362453]
[1772795438275,11.40523956,87.679,87.645,0.70362453]
[1772795440267,28.51020819,87.688,87.647,0.70362453]
[1772795440662,10.2188314,87.68,87.647,0.70362453]
[1772795442082,10.2188314,87.67,87.636,0.70362453]
[1772795442477,11.40654051,87.669,87.638,0.70362453]
[1772795443872,38.72854216,87.69,87.638,0.70362453]
[1772795444077,38.72854216,87.69,87.639,0.14216157]
[1772795444278,39.91378622,87.689,87.642,0.70362453]
[1772795444479,39.91378622,87.689,87.644,0.70362453]
[1772795444885,4.08803884,87.68,87.644,0.70362453]
[1772795447886,39.91378622,87.689,87.646,0.70362453]
[1772795447887,11.40523956,87.679,87.646,0.70362453]
[1772795449085,11.40406897,87.688,87.646,0.70362453]
[1772795449898,4.08803884,87.69,87.647,39.9329127]
[1772795450079,4.08803884,87.69,87.648,0.70362453]
[1772795450475,4.08803884,87.7,87.65,0.70362453]
[1772795450787,4.08803884,87.7,87.652,0.70362453]
[1772795450990,39.90422984,87.71,87.661,0.14216157]
[1772795451174,43.99226868,87.71,87.662,0.70362453]
[1772795452102,43.99226868,87.71,87.664,0.70362453]
[1772795452275,4.08803884,87.7,87.664,0.70362453]
[1772795452676,39.90422984,87.71,87.664,0.70362453]
[1772795452677,4.08803884,87.69,87.664,0.70362453]
[1772795452893,4.08803884,87.7,87.664,0.70362453]
[1772795453982,39.90422984,87.71,87.664,0.70362453]
[1772795453983,4.08803884,87.69,87.664,0.70362453]
[1772795454178,4.08803884,87.69,87.65,32.21610912]
[1772795454179,11.40393892,87.689,87.658,11.40797189]
[1772795454383,11.40393892,87.689,87.659,0.70362453]
[1772795457398,39.91378622,87.689,87.659,0.70362453]
[1772795457584,39.91378622,87.689,87.644,0.14216157]
[1772795457585,39.91378622,87.689,87.661,0.70362453]
[1772795457892,0.63556396,87.688,87.66,2.05e-06]
[1772795458079,0.63556396,87.688,87.66,11.40771366]
[1772795458280,0.63556396,87.688,87.66,2.05e-06]
[1772795458481,0.63556396,87.679,87.66,2.05e-06]
[1772795458982,0.63556396,87.688,87.66,2.05e-06]
[1772795459181,0.63556396,87.688,87.66,11.40771366]
[1772795459576,0.63556396,87.686,87.66,2.05e-06]
[1772795459983,11.40419902,87.687,87.66,2.05e-06]
[1772795459984,0.63556396,87.679,87.66,2.05e-06]
[1772795460198,0.63556396,87.659,87.632,11.41135658]
[1772795460600,0.63556396,87.659,87.633,0.64050698]
[1772795461381,0.63556396,87.657,87.634,11.41109614]
[1772795461582,0.63556396,87.657,87.633,0.64050698]
[1772795462493,11.40823218,87.656,87.633,12.05161719]
[1772795462990,11.40823218,87.656,87.633,11.41111021]
[1772795463309,11.40823218,87.656,87.634,0.67852688]
[1772795464904,0.64119621,87.656,87.635,11.41096593]
[1772795465995,12.0495172,87.656,87.635,11.41096593]
[1772795466497,0.64119621,87.655,87.631,11.4113938]
[1772795467487,0.64119621,87.655,87.628,0.67852688]
[1772795467996,0.64119621,87.655,87.621,28.53193651]
[1772795467997,0.64119621,87.649,87.621,12.09126785]
[1772795468709,0.64119621,87.649,87.621,0.67852688]
[1772795469116,0.64119621,87.649,87.621,12.09128004]
[1772795469299,0.64119621,87.649,87.621,0.67852688]
[1772795470598,0.64119621,87.647,87.621,0.67852688]
[1772795471697,11.40927345,87.648,87.621,0.67852688]
[1772795471893,11.40927345,87.648,87.622,0.67852688]
[1772795472493,12.04903796,87.659,87.622,0.67852688]
[1772795472688,12.04903796,87.659,87.624,0.67852688]
[1772795474528,11.40784175,87.659,87.626,0.67852688]
[1772795474749,0.64119621,87.649,87.613,0.67852688]
[1772795476746,4.08803884,87.65,87.615,0.67852688]
[1772795476747,12.05046966,87.648,87.615,0.67852688]
[1772795478250,0.64119621,87.639,87.607,0.67852688]
[1772795478653,12.05046966,87.648,87.607,0.67852688]
[1772795478949,11.40927345,87.648,87.607,0.67852688]
[1772795479447,0.64119621,87.647,87.607,0.67852688]
[1772795481552,11.40927345,87.648,87.61,0.67852688]
[1772795481757,11.40927345,87.648,87.612,0.67852688]
[1772795482557,11.40862263,87.653,87.614,0.67852688]
[1772795483258,11.40810303,87.657,87.616,0.67852688]
[1772795483455,11.40654051,87.669,87.622,0.67852688]
[1772795483835,11.40654051,87.669,87.627,0.14216157]
[1772795484042,0.64119621,87.681,87.632,0.67852688]
[1772795484755,0.64119621,87.681,87.624,0.14216157]
[1772795484756,11.40523956,87.679,87.634,0.67852688]
[1772795484938,11.40523956,87.679,87.635,0.14216157]
[1772795485141,11.40523956,87.679,87.642,0.67852688]
[1772795487264,38.79849606,87.689,87.646,0.67852688]
[1772795487565,38.79849606,87.689,87.652,0.67852688]
[1772795489267,38.79849606,87.689,87.644,0.42648471]
[1772795489268,38.79849606,87.689,87.654,0.67852688]
[1772795491361,38.79849606,87.689,87.656,0.67852688]
[1772795493675,38.79849606,87.689,87.658,0.64141011]
[1772795495858,38.79849606,87.689,87.66,0.64141011]
[1772795496249,11.40406897,87.688,87.66,0.64141011]
[1772795496450,12.09621426,87.688,87.66,0.64141011]
[1772795496868,38.79849606,87.689,87.66,0.64141011]
[1772795497571,0.69219125,87.688,87.66,0.64141011]
[1772795497967,0.69219125,87.688,87.662,0.64141011]
[1772795498159,38.79849606,87.689,87.662,0.64141011]
[1772795500068,38.79849606,87.689,87.661,39.92653516]
[1772795500069,38.79849606,87.689,87.664,0.64141011]
[1772795501173,0.69232598,87.695,87.664,0.64141011]
[1772795502372,0.69232598,87.695,87.666,0.64141011]
[1772795502770,0.69245613,87.703,87.666,0.64141011]
[1772795502967,11.40199637,87.704,87.666,0.64141011]
[1772795503165,0.69245613,87.703,87.668,0.64141011]
[1772795503472,0.69245613,87.716,87.675,0.14216157]
[1772795503670,0.69245613,87.716,87.674,0.64141011]
[1772795503671,0.69245613,87.716,87.682,0.64141011]
[1772795504463,0.69249852,87.724,87.682,0.64141011]
[1772795505369,0.69254042,87.737,87.686,4.33524413]
[1772795505574,0.1,87.75,87.687,1.56690461]
[1772795505779,0.1,87.75,87.71,0.64141011]
[1772795506074,0.1,87.75,87.72,0.64141011]
[1772795506253,0.1,87.75,87.722,0.64141011]
[1772795506451,0.1,87.75,87.726,0.64141011]
[1772795506756,0.69258184,87.773,87.732,0.64141011]
[1772795507357,11.39332734,87.771,87.734,0.64141011]
[1772795507562,0.69258184,87.773,87.734,0.64141011]
[1772795507772,11.39280925,87.775,87.734,0.64141011]
[1772795507968,0.1,87.78,87.737,0.14216157]
[1772795508279,0.1,87.78,87.752,0.64141011]
[1772795508859,0.1,87.79,87.757,0.14216157]
[1772795509059,0.1,87.79,87.762,0.64141011]
[1772795509267,0.1,87.79,87.764,0.64141011]
[1772795510497,0.1,87.8,87.768,0.64141011]
[1772795510666,0.1,87.8,87.772,0.64141011]
[1772795512587,0.69505352,87.799,87.773,11.39302518]
[1772795512795,0.69505352,87.799,87.773,12.03443529]
[1772795513161,0.69505352,87.799,87.774,0.64141011]
[1772795514565,0.69505352,87.799,87.775,11.39276559]
[1772795514783,0.69505352,87.799,87.776,0.64141011]
[1772795515486,0.1,87.8,87.776,0.64141011]
[1772795515885,0.1,87.8,87.777,12.03391611]
[1772795516987,0.79505352,87.8,87.777,12.03391611]
[1772795517376,0.79505352,87.8,87.778,0.64141011]
[1772795520695,0.79505352,87.8,87.766,0.28432314]
[1772795520696,0.1,87.8,87.782,0.64141011]
[1772795521397,0.1,87.81,87.781,0.14216157]
[1772795521596,0.1,87.81,87.782,0.64141011]
[1772795522900,0.1,87.81,87.784,0.65976732]
[1772795524985,0.30389411,87.81,87.785,11.39146779]
[1772795525179,0.30389411,87.81,87.785,12.05123511]
[1772795525494,0.30389411,87.81,87.786,0.65976732]
[1772795526399,0.1,87.81,87.786,0.65976732]
[1772795526980,0.1,87.82,87.789,0.65976732]
[1772795527297,4.0862112,87.85,87.787,39.86922892]
[1772795527298,0.20533137,87.843,87.802,0.65976732]
[1772795527509,0.20533137,87.843,87.812,0.65976732]
[1772795527879,0.20603196,87.858,87.812,0.65976732]
[1772795528275,0.20603196,87.858,87.811,0.14216157]
[1772795528276,0.1,87.86,87.816,0.65976732]
[1772795528486,0.1,87.86,87.792,1.13905595]
[1772795528487,0.1,87.86,87.829,0.14216157]
[1772795528703,0.1,87.86,87.796,3.69383402]
[1772795528704,0.1,87.86,87.832,0.65976732]
[1772795529106,0.20672094,87.883,87.836,0.65976732]
[1772795529282,0.20672094,87.883,87.842,0.65976732]
[1772795529677,0.1,87.89,87.842,0.65976732]
[1772795529895,0.20740118,87.883,87.842,0.65976732]
[1772795530094,11.58668405,87.879,87.842,0.65976732]
[1772795530312,0.20740118,87.878,87.842,0.65976732]
[1772795530615,0.20740118,87.885,87.842,0.65976732]
[1772795531036,0.20807375,87.877,87.844,0.65976732]
[1772795531346,0.20807375,87.877,87.841,11.38408175]
[1772795531854,0.20807375,87.877,87.841,12.04384907]
[1772795532444,0.20807375,87.877,87.842,0.65976732]
[1772795532746,0.2087326,87.879,87.842,0.65976732]
[1772795533125,0.2087326,87.879,87.844,0.65976732]
[1772795534223,0.2087326,87.879,87.846,0.65976732]
[1772795534422,11.58811826,87.879,87.846,0.65976732]
[1772795534624,0.21003807,87.878,87.84,0.65976732]
[1772795536129,0.1,87.88,87.842,0.65976732]
[1772795536537,0.1,87.88,87.846,0.65976732]
[1772795536739,0.1,87.88,87.844,0.28432314]
[1772795536740,0.1,87.88,87.852,0.65976732]
[1772795538759,0.1,87.88,87.854,0.65976732]
[1772795540664,0.1,87.88,87.862,0.65976732]
[1772795540830,0.1,87.89,87.862,0.65976732]
[1772795541556,0.1,87.9,87.866,0.80192889]
[1772795541731,0.31502456,87.947,87.873,0.65976732]
[1772795541927,0.31502456,87.947,87.886,0.14216157]
[1772795542142,0.31502456,87.947,87.894,0.14216157]
[1772795542451,0.31502456,87.947,87.903,0.65976732]
[1772795542663,0.31502456,87.947,87.906,0.65976732]
[1772795542829,0.31569184,87.946,87.912,0.65976732]
[1772795543031,0.31569184,87.946,87.905,0.28432314]
[1772795543032,0.31569184,87.946,87.905,0.65976732]
[1772795544368,0.3163441,87.946,87.905,0.65976732]
[1772795544729,0.3163441,87.944,87.907,0.65976732]
[1772795546753,0.3163441,87.944,87.909,0.65976732]
[1772795546954,0.2689812,87.97,87.912,0.80192889]
[1772795547160,0.31825475,87.982,87.92,0.65976732]
[1772795547333,45.44566769,88.018,87.911,3.69383402]
[1772795547334,4.0862112,87.97,87.932,0.65976732]
[1772795547537,0.31825475,87.969,87.932,0.65976732]
[1772795548155,0.31825475,87.969,87.924,0.80192889]
[1772795548457,0.31886955,87.98,87.924,0.65976732]
[1772795548655,0.31886955,87.969,87.924,0.65976732]
[1772795548958,0.31948918,87.967,87.925,12.03309686]
[1772795549152,0.31948918,87.967,87.926,0.65976732]
[1772795550553,0.31948918,87.967,87.928,0.65976732]